fUST/lending_fUST_20241001
["ID","MTS","AMOUNT","RATE_DAILY","PERIOD"]
[339587223,1727717333596,500.0,0.00021999,120]
[339587224,1727717334987,500.0,0.00021999,120]
[339587225,1727717336259,500.0,0.00021999,120]
[339587226,1727717338715,501.1,0.00021999,120]
[339587227,1727717339461,1056.37,0.00021999,120]
[339587228,1727717339697,500.0,0.00021999,120]
[339587229,1727717340208,500.0,0.00021999,120]
[339587230,1727717340811,500.0,0.00021999,120]
[339587231,1727717343841,500.0,0.00021999,120]
[339587232,1727717344057,500.0,0.00021999,120]
[339587233,1727717346032,500.0,0.00021999,120]
[339587234,1727717351323,500.0,0.00021999,120]
[339587235,1727717351373,500.0,0.00021999,120]
[339587236,1727717352148,500.0,0.00021999,120]
[339587237,1727717352178,543.15,0.00021999,120]
[339587238,1727717354063,500.0,0.00021999,120]
[339587239,1727717358671,71.39944586,0.00021999,120]
[339587240,1727717358701,428.60055414,0.00021999,120]
[339587241,1727717358938,500.0,0.00021999,120]
[339587242,1727717360363,500.0,0.00021999,120]
[339587243,1727717363047,500.0,0.00021999,120]
[339587244,1727717364429,500.0,0.00021999,120]
[339587245,1727717364721,500.0,0.00021999,120]
[339587246,1727717364972,235.23561004,0.00021999,120]
[339587247,1727717367349,500.0,0.00021999,120]
[339587248,1727717367824,500.0,0.00021999,120]
[339587249,1727717370915,500.0,0.00021999,120]
[339587250,1727717371135,500.0,0.00021999,120]
[339587251,1727717371926,500.0,0.00021999,120]
[339587252,1727717372656,500.0,0.00021999,120]
[339587253,1727717374100,168.15030734,0.00021999,120]
[339587254,1727717376466,500.0,0.00021999,120]
[339587255,1727717377792,500.0,0.00021999,120]
[339587261,1727717380543,500.0,0.00021999,120]
[339587262,1727717381403,556.82,0.00021999,120]
[339587263,1727717385585,815.35,0.00021999,120]
[339587264,1727717386326,509.61395947,0.00021999,120]
[339587265,1727717387573,687.31,0.00021999,120]
[339587266,1727717387625,222.18159621,0.00021999,120]
[339587267,1727717392703,565.34947181,0.00021999,120]
[339587268,1727717394310,1239.36,0.00021999,120]
[339587269,1727717394383,500.0,0.00021999,120]
[339587270,1727717394791,500.0,0.00021999,120]
[339587271,1727717395611,581.2,0.00021999,120]
[339587272,1727717398863,500.0,0.00021999,120]
[339587274,1727717403713,490.82850099,0.00021999,120]
[339587277,1727717403777,1937.71149901,0.00021999,120]
[339587278,1727717403900,988.14,0.00021999,120]
[339587279,1727717404321,500.0,0.00021999,120]
[339587280,1727717404772,2516.99,0.00021999,120]
[339587281,1727717407797,500.0,0.00021999,120]
[339587282,1727717410437,500.0,0.00021999,120]
[339587283,1727717410859,500.0,0.00021999,120]
[339587284,1727717410915,656.23,0.00021999,120]
[339587285,1727717412022,500.0,0.00021999,120]
[339587286,1727717414237,543.74,0.00021999,120]
[339587287,1727717414754,500.0,0.00021999,120]
[339587288,1727717419895,500.0,0.00021999,120]
[339587289,1727717420070,500.0,0.00021999,120]
[339587290,1727717425672,500.0,0.00021999,120]
[339587291,1727717425964,500.0,0.00021999,120]
[339587292,1727717426047,527.27374986,0.00021999,120]
[339587293,1727717428585,500.0,0.00021999,120]
[339587294,1727717429000,500.0,0.00021999,120]
[339587295,1727717429456,500.0,0.00021999,120]
[339587296,1727717431434,500.0,0.00021999,120]
[339587324,1727717432123,-3000.0,0.0001135,2]
[339587325,1727717432134,-76.78191578,0.00011705,2]
[339587326,1727717432500,-223.21808422,0.00011705,2]
[339587327,1727717432511,-70.34871583,0.00011705,2]
[339587328,1727717432523,-229.65128417,0.00011705,2]
[339587329,1727717432534,-406.884974,0.00011706,2]
[339587330,1727717432593,500.0,0.00021999,120]
[339587331,1727717432618,-795.69529847,0.00011706,2]
[339587332,1727717434393,746.08,0.00021999,120]
[339587336,1727717438138,-23697.41972753,0.00011706,2]
[339587337,1727717438148,-169.719552,0.00011885,2]
[339587338,1727717438158,-169.719552,0.00011947,2]
[339587339,1727717438169,-169.719552,0.00012008,2]
[339587340,1727717438178,-169.719552,0.0001207,2]
[339587341,1727717438188,-169.719552,0.00012132,2]
[339587342,1727717438197,-169.719552,0.00012194,2]
[339587343,1727717438207,-169.719552,0.00012256,2]
[339587344,1727717438216,-169.719552,0.00012318,2]
[339587345,1727717438225,-1136.84025972,0.0001238,2]
[339587346,1727717438234,-930.26323794,0.0001238,2]
[339587347,1727717438243,-169.719552,0.0001238,2]
[339587349,1727717438253,-169.719552,0.00012442,2]
[339587351,1727717438262,-169.719552,0.00012504,2]
[339587353,1727717438271,-160.0,0.00012685,3]
[339587354,1727717438280,-420.0,0.00012854,2]
[339587355,1727717438290,-420.0,0.00012876,2]
[339587356,1727717438299,-6197.63482379,0.000129,2]
[339587357,1727717438308,-160.0,0.00012973,4]
[339587358,1727717438317,-500.0,0.00013068,2]
[339587359,1727717438326,-593.537011,0.00013151,2]
[339587360,1727717438336,-160.0,0.0001326,5]
[339587361,1727717438345,-160.0,0.00013548,6]
[339587362,1727717438356,-1000.0,0.00013579,2]
[339587363,1727717438366,-743.50238349,0.00013598,2]
[339587364,1727717438376,-152.03907526,0.00013609,2]
[339587365,1727717438385,-743.50238342,0.00013615,2]
[339587366,1727717438395,-743.50238342,0.00013632,2]
[339587367,1727717438404,-743.50238342,0.00013649,2]
[339587368,1727717438414,-743.50238342,0.00013666,2]
[339587369,1727717438423,-500.0,0.00013673,2]
[339587370,1727717438433,-500.0,0.00013673,2]
[339587371,1727717438442,-500.0,0.00013673,2]
[339587372,1727717438451,-615.66022157,0.00013673,2]
[339587373,1727717438461,-500.0,0.00013673,2]
[339587374,1727717438471,-500.0,0.00013673,2]
[339587375,1727717438480,-562.82550138,0.00013673,2]
[339587376,1727717438490,-629.46314051,0.00013673,2]
[339587377,1727717438499,-500.0,0.00013673,2]
[339587378,1727717438510,-500.0,0.00013673,2]
[339587379,1727717438520,-1207.52242659,0.0001368,2]
[339587380,1727717438529,-743.50238342,0.00013683,2]
[339587381,1727717438538,-151.0,0.00013698,2]
[339587382,1727717438548,-151.0,0.00013698,2]
[339587383,1727717438558,-151.0,0.00013698,2]
[339587384,1727717438568,-151.0,0.00013698,2]
[339587385,1727717438577,-178.18155585,0.00013698,2]
[339587386,1727717438587,-1931.46814793,0.00013698,2]
[339587387,1727717438603,-2806.18157054,0.00013698,2]
[339587394,1727717440088,-7069.19095078,0.00013545,2]
[339587396,1727717440098,-513.60350474,0.00013698,2]
[339587398,1727717440108,-500.0,0.00013698,2]
[339587399,1727717440118,-500.0,0.00013698,2]
[339587400,1727717440127,-150.0,0.00013698,2]
[339587401,1727717440137,-150.0,0.00013698,2]
[339587402,1727717440147,-166.666666,0.00013699,2]
[339587403,1727717440156,-4789.364187,0.00013699,2]
[339587404,1727717440166,-992.979546,0.00013699,2]
[339587405,1727717440175,-20925.4086822,0.00013699,2]
[339587406,1727717440184,-160.0,0.00013699,2]
[339587407,1727717440194,-151.0,0.00013699,2]
[339587409,1727717440204,-151.0,0.00013699,2]
[339587411,1727717440213,-151.0,0.00013699,2]
[339587413,1727717440222,-151.0,0.00013699,2]
[339587415,1727717440232,-151.0,0.00013699,2]
[339587417,1727717440241,-151.0,0.00013699,2]
[339587419,1727717440250,-151.0,0.00013699,2]
[339587420,1727717440260,-151.0,0.00013699,2]
[339587421,1727717440270,-151.0,0.00013699,2]
[339587422,1727717440279,-151.0,0.00013699,2]
[339587423,1727717440288,-150.112233,0.000137,2]
[339587424,1727717440298,-150.112233,0.000137,2]
[339587425,1727717440307,-150.112233,0.000137,2]
[339587426,1727717440317,-150.112233,0.000137,2]
[339587427,1727717440326,-150.112233,0.000137,2]
[339587428,1727717440335,-150.112233,0.000137,2]
[339587429,1727717440344,-150.112233,0.000137,2]
[339587430,1727717440353,-743.50238342,0.000137,2]
[339587431,1727717440363,-743.50238342,0.00013718,2]
[339587432,1727717440373,-500.0,0.00013725,2]
[339587433,1727717440383,-150.0,0.00013725,2]
[339587434,1727717440393,-150.0,0.00013725,2]
[339587435,1727717440402,-151.0,0.00013726,2]
[339587436,1727717440413,-151.0,0.00013726,2]
[339587437,1727717440422,-151.0,0.00013726,2]
[339587438,1727717440431,-151.0,0.00013726,2]
[339587439,1727717440441,-151.0,0.00013726,2]
[339587440,1727717440450,-151.0,0.00013726,2]
[339587441,1727717440459,-151.0,0.00013726,2]
[339587442,1727717440468,-271.36124,0.00013726,2]
[339587443,1727717440478,-239.314023,0.00013726,2]
[339587444,1727717440487,-239.314023,0.00013726,2]
[339587445,1727717440496,-167.485332,0.00013726,2]
[339587446,1727717440507,-743.50238342,0.00013735,2]
[339587447,1727717440516,-151.0,0.00013736,2]
[339587448,1727717440527,-151.0,0.00013736,2]
[339587449,1727717440536,-151.0,0.00013736,2]
[339587450,1727717440546,-6678.02685234,0.00013736,2]
[339587451,1727717440556,-743.50238342,0.00013752,2]
[339587452,1727717440565,-500.0,0.00013753,2]
[339587453,1727717440575,-150.0,0.00013753,2]
[339587454,1727717440585,-150.0,0.00013753,2]
[339587455,1727717440594,-743.50238342,0.00013769,2]
[339587456,1727717440604,-391.0,0.0001378,2]
[339587457,1727717440615,-500.0,0.0001378,2]
[339587458,1727717440626,-150.0,0.0001378,2]
[339587459,1727717440635,-241.30539446,0.0001378,2]
[339587460,1727717440645,-743.50238342,0.00013786,2]
[339587461,1727717440654,-353.350998,0.0001379,2]
[339587462,1727717440663,-353.350998,0.0001379,2]
[339587463,1727717440673,-226.10685,0.0001379,2]
[339587464,1727717440683,-226.10685,0.0001379,2]
[339587465,1727717440693,-377.996063,0.0001379,2]
[339587466,1727717440702,-377.996063,0.0001379,2]
[339587467,1727717440712,-151.0,0.0001379,2]
[339587468,1727717440722,-276.907574,0.0001379,2]
[339587469,1727717440731,-296.404541,0.0001379,2]
[339587470,1727717440741,-276.907574,0.0001379,2]
[339587471,1727717440751,-296.404541,0.0001379,2]
[339587472,1727717440760,-151.0,0.0001379,2]
[339587473,1727717440770,-225.497413,0.0001379,2]
[339587474,1727717440779,-225.497413,0.0001379,2]
[339587475,1727717440788,-567.401867,0.0001379,2]
[339587476,1727717440798,-567.401867,0.0001379,2]
[339587477,1727717440808,-150.112233,0.000138,2]
[339587478,1727717440818,-150.112233,0.000138,2]
[339587479,1727717440827,-150.112233,0.000138,2]
[339587480,1727717440837,-150.112233,0.000138,2]
[339587481,1727717440847,-150.112233,0.000138,2]
[339587482,1727717440856,-150.112233,0.000138,2]
[339587483,1727717440866,-150.112233,0.000138,2]
[339587484,1727717440883,-150.112233,0.000138,2]
[339587485,1727717440893,-150.112233,0.000138,2]
[339587486,1727717440903,-150.112233,0.000138,2]
[339587487,1727717440912,-150.112233,0.000138,2]
[339587488,1727717440922,-150.112233,0.000138,2]
[339587489,1727717440932,-743.50238342,0.00013803,2]
[339587490,1727717440942,-500.0,0.00013808,2]
[339587491,1727717440954,-291.64125952,0.00013808,2]
[339587492,1727717441246,-331.37320245,0.0001381,2]
[339587493,1727717441256,-1000.0,0.0001381,2]
[339587494,1727717441266,-500.0,0.0001381,2]
[339587495,1727717441276,-514.06682951,0.0001381,2]
[339587496,1727717441554,500.0,0.00021999,120]
[339587497,1727717442242,560.4,0.00021999,120]
[339587500,1727717443168,-485.93317049,0.0001381,2]
[339587501,1727717443179,-1000.0,0.0001381,2]
[339587502,1727717443189,-1000.0,0.0001381,2]
[339587503,1727717443199,-1000.51863415,0.0001381,2]
[339587504,1727717443209,-151.0,0.0001381,2]
[339587505,1727717443219,-349.293291,0.0001381,2]
[339587506,1727717443229,-257.99913396,0.0001381,2]
[339587515,1727717443875,500.0,0.00021999,120]
[339587519,1727717447210,500.0,0.00021999,120]
[339587520,1727717447828,500.0,0.00021999,120]
[339587521,1727717448196,500.0,0.00021999,120]
[339587522,1727717452136,500.0,0.00021999,120]
[339587523,1727717455404,500.0,0.00021999,120]
[339587524,1727717459966,500.0,0.00021999,120]
[339587525,1727717463828,500.0,0.00021999,120]
[339587526,1727717464360,1305.03,0.00021999,120]
[339587527,1727717465215,500.0,0.00021999,120]
[339587528,1727717466171,500.0,0.00021999,120]
[339587529,1727717466698,500.0,0.00021999,120]
[339587530,1727717470349,575.96,0.00021999,120]
[339587531,1727717470928,451.73397019,0.00021999,120]
[339587532,1727717470982,500.0,0.00021999,120]
[339587533,1727717471186,500.0,0.00021999,120]
[339587534,1727717474474,1152.4,0.00021999,120]
[339587535,1727717474624,500.0,0.00021999,120]
[339587536,1727717475568,507.27,0.00021999,120]
[339587537,1727717476461,1050.95,0.00021999,120]
[339587538,1727717477463,372.51536393,0.00021999,120]
[339587539,1727717478765,500.0,0.00021999,120]
[339587540,1727717478897,500.0,0.00021999,120]
[339587541,1727717482379,561.52,0.00021999,120]
[339587542,1727717486663,500.0,0.00021999,120]
[339587543,1727717487659,1080.02,0.00021999,120]
[339587544,1727717487847,500.0,0.00021999,120]
[339587545,1727717491062,773.43,0.00021999,120]
[339587546,1727717492382,500.0,0.00021999,120]
[339587547,1727717494533,1170.49,0.00021999,120]
[339587548,1727717498218,500.0,0.00021999,120]
[339587549,1727717500976,500.0,0.00021999,120]
[339587550,1727717501450,883.33,0.00021999,120]
[339587551,1727717503882,500.0,0.00021999,120]
[339587552,1727717504002,500.0,0.00021999,120]
[339587553,1727717506309,500.0,0.00021999,120]
[339587554,1727717507129,500.0,0.00021999,120]
[339587555,1727717508844,500.0,0.00021999,120]
[339587556,1727717511120,500.0,0.00021999,120]
[339587557,1727717512053,500.0,0.00021999,120]
[339587558,1727717512680,500.0,0.00021999,120]
[339587559,1727717513407,500.0,0.00021999,120]
[339587560,1727717517524,500.0,0.00021999,120]
[339587561,1727717518482,500.0,0.00021999,120]
[339587562,1727717521404,500.0,0.00021999,120]
[339587563,1727717521933,500.0,0.00021999,120]
[339587564,1727717526330,500.0,0.00021999,120]
[339587565,1727717526514,500.0,0.00021999,120]
[339587566,1727717528460,1014.24,0.00021999,120]
[339587567,1727717530001,500.0,0.00021999,120]
[339587568,1727717530788,512.19493801,0.00021999,120]
[339587569,1727717532597,500.0,0.00021999,120]
[339587570,1727717532914,500.0,0.00021999,120]
[339587571,1727717533833,500.0,0.00021999,120]
[339587572,1727717534176,500.0,0.00021999,120]
[339587573,1727717534424,500.0,0.00021999,120]
[339587574,1727717535990,500.0,0.00021999,120]
[339587575,1727717536874,500.0,0.00021999,120]
[339587576,1727717537512,555.08,0.00021999,120]
[339587577,1727717538161,500.0,0.00021999,120]
[339587578,1727717539783,530.87,0.00021999,120]
[339587579,1727717540492,500.0,0.00021999,120]
[339587580,1727717541958,500.0,0.00021999,120]
[339587581,1727717543805,659.16,0.00021999,120]
[339587582,1727717544399,500.0,0.00021999,120]
[339587583,1727717549039,500.0,0.00021999,120]
[339587584,1727717549607,500.0,0.00021999,120]
[339587585,1727717549686,150.0,0.00021999,120]
[339587586,1727717550662,500.0,0.00021999,120]
[339587587,1727717551838,500.0,0.00021999,120]
[339587588,1727717553296,686.08,0.00021999,120]
[339587589,1727717561916,500.0,0.00021999,120]
[339587590,1727717563134,500.0,0.00021999,120]
[339587591,1727717564579,500.0,0.00021999,120]
[339587592,1727717564884,395.21042746,0.00021999,120]
[339587593,1727717566104,826.61,0.00021999,120]
[339587594,1727717568038,500.0,0.00021999,120]
[339587595,1727717568273,500.0,0.00021999,120]
[339587596,1727717573375,582.6,0.00021999,120]
[339587597,1727717579164,500.0,0.00021999,120]
[339587599,1727717581733,500.0,0.00021999,120]
[339587600,1727717584826,500.0,0.00021999,120]
[339587601,1727717585603,903.8,0.00021999,120]
[339587602,1727717586155,500.0,0.00021999,120]
[339587603,1727717590530,500.0,0.00021999,120]
[339587604,1727717590642,500.0,0.00021999,120]
[339587605,1727717592541,500.0,0.00021999,120]
[339587606,1727717592945,500.0,0.00021999,120]
[339587607,1727717593451,500.0,0.00021999,120]
[339587608,1727717594734,859.95,0.00021999,120]
[339587609,1727717596061,500.0,0.00021999,120]
[339587610,1727717596397,500.0,0.00021999,120]
[339587611,1727717599161,500.0,0.00021999,120]
[339587612,1727717599759,1149.77,0.00021999,120]
[339587613,1727717599885,1121.06,0.00021999,120]
[339587614,1727717600079,535.93486993,0.00021999,120]
[339587615,1727717602075,500.0,0.00021999,120]
[339587616,1727717604415,303.22941594,0.00021999,120]
[339587617,1727717605922,787.33,0.00021999,120]
[339587618,1727717607554,500.0,0.00021999,120]
[339587619,1727717608691,500.0,0.00021999,120]
[339587620,1727717609295,500.0,0.00021999,120]
[339587621,1727717611658,500.0,0.00021999,120]
[339587622,1727717612541,500.0,0.00021999,120]
[339587623,1727717613294,500.0,0.00021999,120]
[339587624,1727717616720,500.0,0.00021999,120]
[339587625,1727717618229,500.0,0.00021999,120]
[339587626,1727717618518,500.0,0.00021999,120]
[339587627,1727717618703,500.0,0.00021999,120]
[339587628,1727717622234,500.0,0.00021999,120]
[339587629,1727717624724,500.0,0.00021999,120]
[339587630,1727717626107,500.0,0.00021999,120]
[339587631,1727717627114,500.0,0.00021999,120]
[339587632,1727717628397,500.0,0.00021999,120]
[339587633,1727717632121,500.0,0.00021999,120]
[339587634,1727717632231,1615.96,0.00021999,120]
[339587635,1727717633829,595.19,0.00021999,120]
[339587636,1727717634572,781.37,0.00021999,120]
[339587637,1727717636731,500.0,0.00021999,120]
[339587638,1727717640392,500.0,0.00021999,120]
[339587639,1727717640445,500.0,0.00021999,120]
[339587640,1727717644587,658.67,0.00021999,120]
[339587641,1727717645834,500.0,0.00021999,120]
[339587642,1727717647324,500.0,0.00021999,120]
[339587643,1727717649365,1934.2,0.00021999,120]
[339587644,1727717651730,500.0,0.00021999,120]
[339587645,1727717652290,2327.35,0.00021999,120]
[339587646,1727717653671,500.0,0.00021999,120]
[339587647,1727717656165,500.0,0.00021999,120]
[339587648,1727717656376,500.0,0.00021999,120]
[339587649,1727717659196,500.0,0.00021999,120]
[339587650,1727717659743,500.0,0.00021999,120]
[339587651,1727717661324,502.82,0.00021999,120]
[339587652,1727717662800,500.0,0.00021999,120]
[339587653,1727717663243,2412.12,0.00021999,120]
[339587654,1727717663565,500.0,0.00021999,120]
[339587655,1727717664182,500.0,0.00021999,120]
[339587656,1727717664688,500.0,0.00021999,120]
[339587657,1727717666652,500.0,0.00021999,120]
[339587658,1727717672400,500.0,0.00021999,120]
[339587660,1727717675219,500.0,0.00021999,120]
[339587661,1727717675887,500.0,0.00021999,120]
[339587662,1727717676001,500.0,0.00021999,120]
[339587663,1727717677325,500.0,0.00021999,120]
[339587664,1727717678544,500.0,0.00021999,120]
[339587665,1727717680941,500.0,0.00021999,120]
[339587666,1727717681111,540.52,0.00021999,120]
[339587667,1727717685989,1187.72,0.00021999,120]
[339587668,1727717690251,500.0,0.00021999,120]
[339587669,1727717693024,537.05,0.00021999,120]
[339587670,1727717694508,500.0,0.00021999,120]
[339587671,1727717695443,500.0,0.00021999,120]
[339587672,1727717696256,500.0,0.00021999,120]
[339587673,1727717701485,500.0,0.00021999,120]
[339587674,1727717704519,658.72,0.00021999,120]
[339587675,1727717704816,555.89727953,0.00021999,120]
[339587676,1727717706340,500.0,0.00021999,120]
[339587677,1727717709849,1104.38,0.00021999,120]
[339587678,1727717713849,849.7,0.00021999,120]
[339587679,1727717714955,1250.66,0.00021999,120]
[339587680,1727717717095,1096.41,0.00021999,120]
[339587681,1727717717796,500.0,0.00021999,120]
[339587682,1727717721258,500.0,0.00021999,120]
[339587683,1727717721610,500.0,0.00021999,120]
[339587684,1727717726934,741.2,0.00021999,120]
[339587685,1727717729328,1007.16,0.00021999,120]
[339587686,1727717732545,528.19098392,0.00021999,120]
[339587687,1727717734827,500.0,0.00021999,120]
[339587688,1727717735589,500.0,0.00021999,120]
[339587689,1727717736963,766.03,0.00021999,120]
[339587690,1727717741364,500.0,0.00021999,120]
[339587691,1727717741698,500.0,0.00021999,120]
[339587692,1727717744304,524.85,0.00021999,120]
[339587693,1727717749247,677.47,0.00021999,120]
[339587694,1727717749411,539.42,0.00021999,120]
[339587695,1727717750547,686.98,0.00021999,120]
[339587696,1727717751727,374.32028676,0.00021999,120]
[339587697,1727717752508,500.0,0.00021999,120]
[339587698,1727717754907,500.0,0.00021999,120]
[339587699,1727717756814,500.0,0.00021999,120]
[339587700,1727717757085,1464.69,0.00021999,120]
[339587701,1727717760681,500.0,0.00021999,120]
[339587702,1727717762351,500.0,0.00021999,120]
[339587703,1727717766251,500.0,0.00021999,120]
[339587704,1727717766579,500.0,0.00021999,120]
[339587705,1727717769263,500.0,0.00021999,120]
[339587706,1727717771011,500.0,0.00021999,120]
[339587707,1727717771503,500.0,0.00021999,120]
[339587708,1727717772159,500.0,0.00021999,120]
[339587709,1727717775937,508.75,0.00021999,120]
[339587710,1727717778764,500.0,0.00021999,120]
[339587711,1727717778958,500.0,0.00021999,120]
[339587712,1727717779471,500.0,0.00021999,120]
[339587713,1727717779621,500.0,0.00021999,120]
[339587714,1727717779786,500.0,0.00021999,120]
[339587715,1727717781080,500.0,0.00021999,120]
[339587716,1727717782481,500.0,0.00021999,120]
[339587717,1727717784896,500.0,0.00021999,120]
[339587718,1727717786945,500.0,0.00021999,120]
[339587719,1727717787040,506.3,0.00021999,120]
[339587720,1727717789313,500.0,0.00021999,120]
[339587721,1727717789752,500.0,0.00021999,120]
[339587722,1727717789873,1935.38,0.00021999,120]
[339587723,1727717791737,500.0,0.00021999,120]
[339587724,1727717793682,159.13,0.00021999,120]
[339587725,1727717795190,531.95,0.00021999,120]
[339587726,1727717799488,500.0,0.00021999,120]
[339587727,1727717801057,500.0,0.00021999,120]
[339587729,1727717802627,500.0,0.00021999,120]
[339587732,1727717805423,500.0,0.00021999,120]
[339587733,1727717807107,500.0,0.00021999,120]
[339587734,1727717808243,254.78258927,0.00021999,120]
[339587735,1727717808371,501.76,0.00021999,120]
[339587736,1727717808728,500.0,0.00021999,120]
[339587737,1727717808939,500.0,0.00021999,120]
[339587738,1727717810528,500.0,0.00021999,120]
[339587739,1727717810594,500.0,0.00021999,120]
[339587740,1727717811169,500.0,0.00021999,120]
[339587741,1727717815704,500.0,0.00021999,120]
[339587742,1727717815764,483.36867547,0.00021999,120]
[339587743,1727717815818,500.0,0.00021999,120]
[339587744,1727717816945,500.0,0.00021999,120]
[339587745,1727717818314,500.0,0.00021999,120]
[339587746,1727717818806,500.0,0.00021999,120]
[339587747,1727717823718,638.97539031,0.00021999,120]
[339587748,1727717824753,971.98,0.00021999,120]
[339587749,1727717826376,500.0,0.00021999,120]
[339587750,1727717826756,500.0,0.00021999,120]
[339587751,1727717826819,500.0,0.00021999,120]
[339587752,1727717826914,691.75,0.00021999,120]
[339587753,1727717828571,500.0,0.00021999,120]
[339587754,1727717829852,500.0,0.00021999,120]
[339587755,1727717830195,500.0,0.00021999,120]
[339587756,1727717834908,1282.76,0.00021999,120]
[339587757,1727717838421,500.0,0.00021999,120]
[339587758,1727717839607,500.0,0.00021999,120]
[339587759,1727717840820,500.0,0.00021999,120]
[339587760,1727717842619,220.50806816,0.00021999,120]
[339587761,1727717844970,500.0,0.00021999,120]
[339587762,1727717845855,1306.14,0.00021999,120]
[339587763,1727717847946,500.0,0.00021999,120]
[339587764,1727717848289,500.0,0.00021999,120]
[339587765,1727717849592,393.9,0.00021999,120]
[339587766,1727717851415,500.0,0.00021999,120]
[339587767,1727717851849,500.0,0.00021999,120]
[339587768,1727717852859,500.0,0.00021999,120]
[339587769,1727717855203,500.0,0.00021999,120]
[339587770,1727717855871,500.0,0.00021999,120]
[339587771,1727717857072,505.19,0.00021999,120]
[339587772,1727717858924,500.0,0.00021999,120]
[339587773,1727717861439,500.0,0.00021999,120]
[339587774,1727717862542,500.0,0.00021999,120]
[339587775,1727717862891,748.82,0.00021999,120]
[339587776,1727717865775,500.0,0.00021999,120]
[339587777,1727717866362,500.0,0.00021999,120]
[339587778,1727717866503,858.37,0.00021999,120]
[339587779,1727717866595,500.0,0.00021999,120]
[339587780,1727717867800,500.0,0.00021999,120]
[339587781,1727717868212,500.0,0.00021999,120]
[339587782,1727717868261,654.86,0.00021999,120]
[339587783,1727717868988,516.47,0.00021999,120]
[339587784,1727717872370,500.0,0.00021999,120]
[339587785,1727717873135,500.0,0.00021999,120]
[339587786,1727717876950,500.0,0.00021999,120]
[339587787,1727717880683,911.86,0.00021999,120]
[339587788,1727717882101,500.0,0.00021999,120]
[339587789,1727717882171,503.09,0.00021999,120]
[339587790,1727717882560,500.0,0.00021999,120]
[339587791,1727717882663,2230.38,0.00021999,120]
[339587792,1727717884964,500.0,0.00021999,120]
[339587793,1727717887549,500.0,0.00021999,120]
[339587794,1727717888678,500.0,0.00021999,120]
[339587795,1727717888781,500.0,0.00021999,120]